lending/lending_fUSD_20240124
["ID","MTS","AMOUNT","RATE_DAILY","PERIOD"]
[312652558,1706136632226,-358.97557567,0.00024015,2]
[312652559,1706136632238,-1271.24,0.00024015,2]
[312652560,1706136632249,-255994.90260548,0.00024015,2]
[312652561,1706136632258,-300.62032364,0.00024016,2]
[312652562,1706136632267,-1228.53056958,0.00024017,2]
[312652563,1706136632277,-517.26,0.00024017,2]
[312652564,1706136632285,-999.99,0.00024017,2]
[312652565,1706136632295,-2234.4,0.00024017,2]
[312652566,1706136632304,-1658.07,0.00024017,2]
[312652567,1706136632314,-756.84,0.00024017,2]
[312652568,1706136632323,-499.99,0.00024017,2]
[312652569,1706136632332,-657.69,0.00024061,2]
[312652570,1706136632342,-7131.09,0.00024113,2]
[312652571,1706136632351,-1988.46,0.00024114,2]
[312652572,1706136632360,-1000.0,0.00024115,2]
[312652573,1706136632369,-8692.47327259,0.00024116,2]
[312652574,1706136632385,-1307.52672741,0.00024116,2]
[312652575,1706136632394,-156.02723587,0.00024117,2]
[312652592,1706136637855,-230.81452189,0.00022085,2]
[312652593,1706136637866,-500.0,0.00022415,2]
[312652594,1706136637877,-66.40547811,0.00024117,2]
[312652595,1706136637891,-1777.56728602,0.00024117,2]
[312652596,1706136637902,-15777.97273846,0.00024117,2]
[312652601,1706136637988,-1048.6173871,0.00024117,2]
[312652612,1706136638092,-561.2699,0.00024117,2]
[312652613,1706136638105,-333.4011,0.00024117,2]
[312652614,1706136638122,-825.57805478,0.00024117,2]
[312652615,1706136638136,-5353.16081966,0.00024117,2]
[312652616,1706136638146,-165.06,0.00024192,2]
[312652617,1706136638157,-205.01148946,0.00024222,2]
[312652618,1706136638167,-161.34546966,0.00024232,2]
[312652619,1706136638177,-341.87083974,0.00024311,2]
[312652620,1706136638187,-289.17,0.00024371,2]
[312652622,1706136638198,-305.74,0.00024382,2]
[312652625,1706136638208,-305.74,0.00024449,2]
[312652627,1706136638219,-305.74,0.00024516,2]
[312652629,1706136638229,-622.68,0.00024578,2]
[312652631,1706136638239,-305.74,0.00024582,2]
[312652633,1706136638250,-305.74,0.00024649,2]
[312652635,1706136638261,-250.0,0.00024658,2]
[312652638,1706136638272,-305.74,0.00024716,2]
[312652640,1706136638282,-161.34546966,0.00024744,2]
[312652642,1706136638293,-305.74,0.00024783,2]
[312652644,1706136638303,-305.74,0.0002485,2]
[312652646,1706136638313,-305.74,0.00024917,2]
[312652648,1706136638324,-305.74,0.00024984,2]
[312652650,1706136638334,-200.0,0.00025,2]
[312652653,1706136638344,-347652.26458158,0.00025002,2]
[312652747,1706136640967,-550.12744741,0.00025002,2]
[312652748,1706136640980,-706.0696495,0.00025002,2]
[312652749,1706136640992,-577.408,0.00025002,2]
[312652861,1706136642746,-277.0874517,0.00025002,2]
[312652862,1706136643011,-11186.20906966,0.00025002,2]
[312652879,1706136645723,-585.11234997,0.00025001,2]
[312652880,1706136645732,-1043.15716476,0.00025001,2]
[312652881,1706136645742,-214.6780759,0.00025001,2]
[312652882,1706136645751,-3938.93874818,0.00025002,2]
[312652883,1706136645763,-23825.95453527,0.00025002,2]
[312652884,1706136645882,-4227.49954603,0.00025002,2]
[312652885,1706136645893,-11583.08192213,0.00025002,2]
[312652886,1706136645905,-13252.97645321,0.00025002,2]
[312652887,1706136645916,-457.16083985,0.00025002,2]
[312652888,1706136645927,-2053.87449833,0.00025002,2]
[312652889,1706136645938,-349.52660475,0.00025002,2]
[312652890,1706136645950,-547.28982238,0.00025002,2]
[312652891,1706136645961,-4205.72983002,0.00025002,2]
[312652892,1706136645970,-3659.9084,0.00025002,2]
[312652893,1706136645979,-714.34166357,0.00025007,2]
[312652894,1706136645999,-379.80612017,0.00025007,2]
[312652895,1706136646047,-308.72840528,0.00025007,2]
[312652896,1706136646059,-585.58381098,0.00025007,2]
[312652897,1706136646069,-305.74,0.00025051,2]
[312652898,1706136646078,-237.97718372,0.00025117,2]
[312652899,1706136646090,-67.76281628,0.00025117,2]
[312652900,1706136646099,-156.64507803,0.00025176,2]
[312652901,1706136646109,-33.37559357,0.00025176,2]
[312652915,1706137017253,603.96,0.00021651,2]
[312652919,1706137081371,189.01,0.0002161,2]
[312652920,1706137085245,200.0,0.00021622,2]
[312652921,1706137112237,250.0,0.00021622,2]
[312652922,1706137164004,200.0,0.00021603,2]
[312652923,1706137173825,2000.0,0.00021603,2]
[312652924,1706137228603,329.52,0.00019697,2]
[312652925,1706137285915,1345.36,0.00021644,2]
[312652926,1706137305475,165.06,0.00021474,2]
[312652927,1706137305718,162.2,0.00021474,2]
[312652928,1706137321510,23900.0,0.00021486,2]
[312652929,1706137407217,200.0,0.00021493,2]
[312652930,1706137455065,-4631.6504733,0.00021776,2]
[312652931,1706137455092,-230.81452189,0.00021776,2]
[312652932,1706137455115,-521.47238087,0.00021776,2]
[312652933,1706137455137,-4354.81301982,0.00021777,2]
[312652934,1706137455162,-1318.68025642,0.00021778,2]
[312652935,1706137455183,-868.11759118,0.00021779,2]
[312652936,1706137455208,-282.97,0.00021792,2]
[312652937,1706137455230,-2872.88630646,0.000218,2]
[312652938,1706137455252,-282.97,0.00021852,2]
[312652939,1706137455275,-150.0,0.00021883,2]
[312652940,1706137455297,-150.0,0.00021883,2]
[312652941,1706137455322,-151.85455968,0.00021896,2]
[312652942,1706137455345,-282.97,0.00021911,2]
[312652943,1706137455367,-320.97,0.00021911,2]
[312652944,1706137455389,-3667.33,0.00021911,2]
[312652945,1706137455411,-970.18,0.00021911,2]
[312652946,1706137455434,-250.0,0.00021918,2]
[312652947,1706137455461,-10000.0,0.00021918,2]
[312652948,1706137455486,-329.52,0.00021961,2]
[312652949,1706137455510,-151.85455968,0.00021965,2]
[312652950,1706137455534,-282.97,0.00021971,2]
[312652951,1706137455560,-352.86,0.00022,2]
[312652952,1706137455582,-500.0,0.00022,2]
[312652953,1706137455605,-257.27,0.00022,2]
[312652954,1706137455627,-177.44043326,0.00022,2]
[312652955,1706137455649,-150.0,0.00022,2]
[312652956,1706137455673,-13.59542949,0.00022,2]
[312652957,1706137495208,503.3,0.00021622,2]
[312652958,1706137501565,279.66758209,0.00021621,2]
[312652959,1706137502102,698.71506355,0.00021621,2]
[312652960,1706137524652,200.0,0.00021629,2]
[312652961,1706137543254,500.0,0.00021617,2]
[312652962,1706137571219,155.0,0.00020695,2]
[312652963,1706137576799,152.87,0.00021581,2]
[312652964,1706137589222,155.0,0.00020606,2]
[312652965,1706137591294,219.44,0.00021487,2]
[312652966,1706137609232,155.0,0.00020606,2]
[312652967,1706137629734,155.0,0.00020606,2]
[312652968,1706137630877,250.0,0.00021486,2]
[312652969,1706137635416,150.80119749,0.00021379,2]
[312652970,1706137649741,155.0,0.00020606,2]
[312652971,1706137664525,150.0,0.00021497,2]
[312652972,1706137713999,1076.28,0.00021644,2]
[312652973,1706137736532,241.82,0.00021628,2]
[312652974,1706137736942,241.82,0.00021688,2]
[312652975,1706137738897,316.15,0.00019549,2]
[312652976,1706137774164,2000.0,0.00021329,2]
[312652977,1706137776324,23900.0,0.0002132,2]
[312652978,1706137777219,158.98648489,0.00021742,2]
[312652979,1706137779538,172.09680919,0.00021742,2]
[312652980,1706137780942,242.76824442,0.00021742,2]
[312652981,1706137782834,155.0,0.00021742,2]
[312652982,1706137782869,155.0,0.00021742,2]
[312652983,1706137789315,3047.53475621,0.00021742,2]
[312652984,1706137796541,155.0,0.00021742,2]
[312652985,1706137797901,1137.90745504,0.00021742,2]
[312652986,1706137798355,1711.28766055,0.00021742,2]
[312652987,1706137798749,155.0,0.00021742,2]
[312652988,1706137802680,228.5738484,0.00021742,2]
[312652989,1706137803209,150.0,0.00021742,2]
[312652990,1706137803422,150.0,0.00021742,2]
[312652991,1706137803659,150.0,0.00021742,2]
[312652992,1706137803857,150.0,0.00021742,2]
[312652993,1706137804052,150.0,0.00021742,2]
[312652994,1706137804652,150.0,0.00021742,2]
[312652995,1706137804682,155.0,0.00021742,2]
[312652996,1706137804721,150.0,0.00021742,2]
[312652997,1706137804774,150.0,0.00021742,2]
[312652998,1706137804859,150.0,0.00021742,2]
[312652999,1706137805058,150.0,0.00021742,2]
[312653000,1706137805284,150.0,0.00021742,2]
[312653001,1706137805483,150.0,0.00021742,2]
[312653002,1706137805640,150.0,0.00021742,2]
[312653003,1706137805849,150.0,0.00021742,2]
[312653004,1706137805889,3194.07254394,0.00021742,2]
[312653005,1706137806159,150.0,0.00021742,2]
[312653006,1706137806362,150.0,0.00021742,2]
[312653007,1706137806541,150.0,0.00021742,2]
[312653008,1706137806759,150.0,0.00021742,2]
[312653009,1706137806788,167.59,0.00021377,2]
[312653010,1706137806973,150.0,0.00021742,2]
[312653011,1706137807403,150.0,0.00021742,2]
[312653012,1706137807625,150.0,0.00021742,2]
[312653013,1706137807826,150.0,0.00021742,2]
[312653014,1706137808023,150.0,0.00021742,2]
[312653015,1706137808440,1318.68025642,0.00021742,2]
[312653016,1706137811086,150.0,0.00020744,2]
[312653017,1706137812353,150.0,0.00021292,2]
[312653018,1706137815296,160.85063885,0.00021742,2]
[312653019,1706137815395,529.95129566,0.00021742,2]
[312653020,1706137815491,5449.93104079,0.00021742,2]
[312653021,1706137817755,1769.93759612,0.00021742,2]
[312653022,1706137818086,1418.81878163,0.00021742,2]
[312653023,1706137825982,918.16081653,0.00021742,2]
[312653024,1706137829932,196.97758643,0.00021742,2]
[312653064,1706137831907,-155.0,0.00021743,2]
[312653069,1706137831922,-1353.325507,0.00021743,2]
[312653072,1706137831936,-1659.16795159,0.00021743,2]
[312653077,1706137831950,-482.7320001,0.00021743,2]
[312653082,1706137831966,-2229.09071573,0.00021743,2]
[312653084,1706137831981,-3627.95423727,0.00021743,2]
[312653087,1706137831994,-1477.66193459,0.00021743,2]
[312653090,1706137832019,-958.19999987,0.00021743,2]
[312653093,1706137832036,-1607.61847118,0.00021743,2]
[312653095,1706137832049,-1984.32612,0.00021743,2]
[312653101,1706137832088,-18028.67541992,0.00021743,2]
[312653103,1706137832099,-241.82,0.00021747,2]
[312653105,1706137832110,-286.95311567,0.00021751,2]
[312653106,1706137832122,-527.48638305,0.00021757,2]
[312653107,1706137832134,-341.87083974,0.00021758,2]
[312653109,1706137832147,-241.82,0.00021806,2]
[312653111,1706137832159,-316.15,0.00021813,2]
[312653112,1706137832173,-287.41314516,0.0002184,2]
[312653113,1706137832187,-241.82,0.00021866,2]
[312653114,1706137832201,-250.0,0.00021918,2]
[312653116,1706137832214,-241.82,0.00021925,2]
[312653118,1706137832227,-150.0,0.00021956,2]
[312653121,1706137832239,-2339.9487561,0.0002198,2]
[312653123,1706137832251,-241.82,0.00021984,2]
[312653125,1706137832261,-499.99,0.00021998,2]
[312653126,1706137832272,-500.0,0.00022,2]
[312653128,1706137832282,-257.27,0.00022,2]
[312653129,1706137832293,-150.99,0.00022031,2]
[312653130,1706137832304,-151.85455968,0.00022034,2]
[312653131,1706137832316,-241.82,0.00022043,2]
[312653132,1706137832327,-151.85455968,0.00022102,2]
[312653133,1706137832339,-241.82,0.00022103,2]
[312653134,1706137832350,-257.27,0.00022137,2]
[312653135,1706137832362,-241.82,0.00022162,2]
[312653136,1706137832373,-151.85455968,0.00022171,2]
[312653137,1706137832383,-241.82,0.00022221,2]
[312653138,1706137832394,-151.85455968,0.0002224,2]
[312653139,1706137832405,-257.27,0.00022274,2]
[312653140,1706137832418,-241.82,0.00022281,2]
[312653141,1706137832429,-151.85455968,0.00022309,2]
[312653142,1706137832446,-241.82,0.0002234,2]
[312653143,1706137832457,-151.85455968,0.00022377,2]
[312653144,1706137832468,-241.82,0.00022399,2]
[312653145,1706137832479,-258.26531912,0.00022411,2]
[312653146,1706137832491,-1076.28,0.00022445,2]
[312653147,1706137832503,-151.85455968,0.00022446,2]
[312653148,1706137832514,-241.82,0.00022459,2]
[312653149,1706137832525,-151.85455968,0.00022515,2]
[312653150,1706137832537,-241.82,0.00022518,2]
[312653151,1706137832548,-150.0,0.00022548,2]
[312653152,1706137832559,-500.0,0.00022548,2]
[312653153,1706137832571,-241.82,0.00022577,2]
[312653154,1706137832583,-151.85455968,0.00022584,2]
[312653155,1706137832593,-241.82,0.00022637,2]
[312653156,1706137832605,-151.85455968,0.00022652,2]
[312653157,1706137832616,-241.82,0.00022696,2]
[312653158,1706137832628,-1000.0,0.0002271,2]
[312653159,1706137832640,-151.85455968,0.00022721,2]
[312653160,1706137832652,-241.82,0.00022755,2]
[312653161,1706137832664,-281.43377314,0.00022766,2]
[312653162,1706137832678,-151.85455968,0.0002279,2]
[312653163,1706137832689,-550.24892288,0.00022827,2]
[312653164,1706137832701,-216.84,0.00022857,2]
[312653165,1706137832713,-151.85455968,0.00022859,2]
[312653166,1706137832723,-205.01148946,0.0002289,2]
[312653167,1706137832735,-155.0,0.00022896,2]
[312653168,1706137832746,-155.0,0.00022896,2]
[312653169,1706137832757,-171.76343883,0.00022896,2]
[312653170,1706137832769,-242.57336952,0.00022896,2]
[312653171,1706137832780,-155.0,0.00022896,2]
[312653172,1706137832791,-1137.0174671,0.00022896,2]
[312653173,1706137832802,-155.0,0.00022896,2]
[312653174,1706137832813,-228.37737602,0.00022896,2]
[312653175,1706137832824,-182.39401206,0.00022896,2]
[312653176,1706137832835,-1318.68025642,0.00022896,2]
[312653177,1706137832847,-528.94657984,0.00022896,2]
[312653178,1706137832858,-1417.71638143,0.00022896,2]
[312653179,1706137832869,-158.85685373,0.00022897,2]
[312653180,1706137832880,-3047.53475621,0.00022897,2]
[312653181,1706137832891,-1709.91135821,0.00022897,2]
[312653182,1706137832903,-4797.7006,0.00022898,2]
[312653183,1706137832914,-3624.15,0.00022898,2]
[312653184,1706137832927,-1000.0,0.00022898,2]
[312653185,1706137832937,-356055.6246,0.00022898,2]
[312653186,1706137832948,-2500.0,0.00022898,2]
[312653187,1706137832958,-330900.59218117,0.000229,2]
[312653188,1706137832973,-316.617,0.000229,2]
[312653189,1706137832986,-1026.30956038,0.000229,2]
[312653190,1706137832999,-2197.2664254,0.000229,2]
[312653191,1706137833013,-2983.88558587,0.000229,2]
[312653192,1706137833027,-2952.48971687,0.000229,2]
[312653193,1706137833058,-4353.7,0.000229,2]
[312653198,1706137837846,-338.03486453,0.00021746,2]
[312653199,1706137837856,-109.67713612,0.00021746,2]
[312653200,1706137837899,-275.39067424,0.00021746,2]
[312653201,1706137837908,-60.40478582,0.00022896,2]
[312653202,1706137838033,-827.13959953,0.00022896,2]
[312653203,1706137838045,-822.14419255,0.00022896,2]
[312653204,1706137838054,-160.72902007,0.00022896,2]
[312653205,1706137838063,-334.14063878,0.00022896,2]
[312653206,1706137838202,-3241.87251893,0.00022896,2]
[312653207,1706137838212,-12787.79893817,0.000229,2]
[312653208,1706137838236,-42075.69657074,0.000229,2]
[312653209,1706137838247,-403.51433241,0.000229,2]
[312653210,1706137838259,-721.9024405,0.000229,2]
[312653212,1706137838270,-668.6549,0.000229,2]
[312653215,1706137838281,-623.31486525,0.000229,2]
[312653217,1706137838292,-417.8818026,0.000229,2]
[312653219,1706137838323,-103862.25009149,0.000229,2]
[312653220,1706137838332,-550.24892287,0.00022911,2]
[312653221,1706137838341,-151.85455968,0.00022927,2]
[312653222,1706137838350,-205.01148946,0.0002299,2]
[312653223,1706137838359,-205.01148946,0.0002299,2]
[312653224,1706137838368,-488.46109368,0.00022994,2]
[312653225,1706137838377,-278.92589263,0.00022994,2]
[312653226,1706137838386,-698.13044997,0.00022994,2]
[312653227,1706137838396,-155.0,0.00022994,2]
[312653228,1706137838405,-155.0,0.00022994,2]
[312653229,1706137838414,-233.38000799,0.00022994,2]
[312653230,1706137838425,-161.77057459,0.00022994,2]
[312653231,1706137838434,-550.24892287,0.00022994,2]
[312653232,1706137838444,-3862.48921522,0.00022995,2]
[312653233,1706137838453,-170.14773908,0.00022996,2]
[312653234,1706137838462,-151.85455968,0.00022996,2]
[312653235,1706137838472,-155.10255778,0.00022996,2]
[312653236,1706137838481,-2459.59940255,0.00022996,2]
[312653237,1706137838490,-159.17260892,0.00022996,2]
[312653238,1706137838499,-3146.91697734,0.00022996,2]
[312653239,1706137838509,-371.50432901,0.00022996,2]
[312653240,1706137838519,-1853.89068505,0.00022996,2]
[312653241,1706137838528,-155.0,0.00022996,2]
[312653242,1706137838538,-400.0,0.00022996,2]
[312653243,1706137838548,-155.0,0.00022996,2]
[312653244,1706137838557,-2904.1472986,0.00022996,2]
[312653245,1706137838566,-155.0,0.00022996,2]
[312653246,1706137838575,-286.88420414,0.00022996,2]
[312653247,1706137838584,-155.0,0.00022996,2]
[312653248,1706137838593,-366.60732288,0.00022996,2]
[312653249,1706137838603,-364.35538868,0.00022996,2]
[312653250,1706137838612,-400.87297161,0.00022996,2]
[312653251,1706137838621,-229.73582104,0.00022996,2]
[312653252,1706137838631,-265.7015071,0.00022996,2]
[312653253,1706137838640,-155.0,0.00022996,2]
[312653254,1706137838649,-4491.27761482,0.00022996,2]
[312653255,1706137838658,-2681.82236223,0.00022996,2]
[312653256,1706137838669,-543.34550297,0.00022996,2]
[312653257,1706137838678,-2308.67867442,0.00022996,2]
[312653258,1706137838687,-1071.57950665,0.00022996,2]
[312653259,1706137838697,-2141.01788593,0.00022996,2]
[312653260,1706137838706,-155.0,0.00022996,2]
[312653261,1706137838717,-43035.37746379,0.00022996,2]
[312653262,1706137838726,-525.60097669,0.00022996,2]
[312653263,1706137838736,-155.0,0.00022996,2]
[312653264,1706137838746,-501.8201286,0.00022996,2]
[312653265,1706137838756,-4275.93203836,0.00022996,2]
[312653266,1706137838766,-1813.37519997,0.00022996,2]
[312653267,1706137838775,-200.88840204,0.00022996,2]
[312653268,1706137838784,-1148.16533238,0.00022996,2]
[312653269,1706137838793,-643.74217956,0.00022996,2]
[312653270,1706137838802,-4416.69166262,0.00022996,6]
[312653271,1706137838811,-228.89328241,0.00022996,2]
[312653272,1706137838820,-314.52691818,0.00022997,2]
[312653273,1706137838829,-4350.77746976,0.00022997,2]
[312653274,1706137838838,-2801.30874664,0.00022997,2]
[312653275,1706137838847,-337.66028075,0.00022999,2]
[312653276,1706137838857,-150.0,0.00022999,2]
[312653277,1706137838866,-150.0,0.00022999,2]
[312653278,1706137838875,-150.0,0.00022999,2]
[312653279,1706137838884,-150.0,0.00022999,2]
[312653280,1706137838893,-150.0,0.00022999,2]
[312653281,1706137838902,-224.68058259,0.00022999,2]
[312653282,1706137838911,-153322.87037503,0.00023,2]
[312653285,1706137841117,-251.4527,0.00022798,2]
[312653286,1706137841126,-55.31485,0.00023,2]
[312653287,1706137841139,-251993.50829828,0.00023,2]
[312653288,1706137841150,-807.2970511,0.00023,2]
[312653289,1706137841180,-280.414709,0.00023,2]
[312653290,1706137841194,-996.24098029,0.00023,2]
[312653291,1706137841205,-4371.5906833,0.00023,2]
[312653292,1706137841234,-658.38525432,0.00023,2]
[312653293,1706137841301,-1870.23385584,0.00023,2]
[312653294,1706137841313,-276.97072773,0.00023,2]
[312653295,1706137841324,-420.11134394,0.00023,2]
[312653296,1706137841336,-549.89068935,0.00023,2]
[312653297,1706137841348,-1800.70753572,0.00023,2]
[312653316,1706137842931,-287.93703842,0.00022996,2]
[312653317,1706137842941,-4596.54296158,0.00023,2]
[312653319,1706137842952,-5980.1737859,0.00023,2]
[312653320,1706137842963,-474.17972,0.00023,2]
[312653321,1706137842988,-427.10354647,0.00023,2]
[312653322,1706137842998,-428.982312,0.00023,2]
[312653323,1706137843048,-410.5399995,0.00023,2]
[312653324,1706137843160,-2997.58109786,0.00023,2]
[312653325,1706137843174,-400.0,0.00023,2]
[312653326,1706137844368,-918.16081653,0.00022999,2]
[312653327,1706137844377,-7625.43297128,0.00023,2]
[312653337,1706137846397,-13429.94453153,0.00023,2]
[312653341,1706137846425,-3795.05126393,0.00023,2]
[312653345,1706137846448,-1141.71947878,0.00023,2]
[312653347,1706137846459,-10637.71281237,0.00023,2]
[312653349,1706137846475,-1581.2678062,0.00023,2]
[312653354,1706137846508,-7567.08157827,0.00022999,2]
[312653357,1706137846528,-11024.20335073,0.00022999,2]
[312653360,1706137846539,-1226.36147996,0.00022999,2]
[312653366,1706137891266,1228.53056958,0.00020516,2]
[312653367,1706137971473,1044.80909175,0.00020516,2]
[312653368,1706138000879,266.52,0.00021661,2]
[312653369,1706138066277,250.0,0.00021627,2]
[312654365,1706138137212,772.03,0.00021644,2]
[312654796,1706138157721,235.18,0.00021202,2]
[312654797,1706138172675,329.63,0.00019283,2]
[312654798,1706138172754,329.63,0.00021547,2]
[312654799,1706138196057,875.26,0.00021221,2]
[312654800,1706138200778,150.0,0.00021221,2]
[312654803,1706138231667,156.18,0.00021344,2]
[312654804,1706138244077,2000.0,0.00021158,2]
[312654805,1706138255112,166.37,0.00021158,2]
[312654806,1706138298579,1113.81,0.00021175,2]
[312654807,1706138386584,170.76,0.00021129,2]
[312654808,1706138387810,535.96,0.00021129,2]
[312654809,1706138443859,169.57,0.00021143,2]
[312654810,1706138511794,385.06781036,0.00021742,2]
[312654811,1706138511924,150.0,0.00021691,2]
[312654812,1706138523926,4251.93051247,0.00021742,2]
[312654813,1706138524327,215.34454032,0.00021742,2]
[312654814,1706138524819,310.53705764,0.00021742,2]
[312654815,1706138528791,202.91523791,0.00021742,2]
[312654816,1706138529632,918.16081653,0.00021742,2]
[312654817,1706138531003,203.54099901,0.00021742,2]
[312654818,1706138533780,155.0,0.00021742,2]
[312654819,1706138535623,155.0,0.00021742,2]
[312654820,1706138535652,5221.14240979,0.00021742,2]
[312654821,1706138536020,196.97758643,0.00021742,2]
[312654822,1706138537037,16781.96707607,0.00021742,2]
[312654823,1706138537914,1034.24878722,0.00021742,2]
[312654824,1706138539511,406.17163679,0.00021742,2]
[312654825,1706138539546,281.54944262,0.00021742,2]
[312654826,1706138542344,215.1052378,0.00021742,2]
[312654827,1706138542748,543.55682798,0.00021742,2]
[312654828,1706138544709,203.54099901,0.00021742,2]
[312654829,1706138546318,22635.3430364,0.00021742,2]
[312654830,1706138546608,314.64308926,0.00021742,2]
[312654831,1706138547734,2322.48376811,0.00021742,2]
[312654832,1706138550216,338.03486453,0.00021742,2]
[312654833,1706138550482,155.0,0.00021742,2]
[312654834,1706138552639,260.49358116,0.00021742,2]
[312654835,1706138555444,250.61147486,0.00021742,2]
[312654836,1706138556031,242.76824442,0.00021742,2]
[312654837,1706138556692,233.47228748,0.00021742,2]
[312654838,1706138560290,6445.92680117,0.00021742,2]
[312654839,1706138564142,250.0,0.00021316,2]
[312654840,1706138567876,169.00136356,0.00021295,2]
[312654841,1706138569708,302.60679678,0.00021742,2]
[312654842,1706138571953,301.63928391,0.00021742,2]
[312654843,1706138576458,301.63928391,0.00021742,2]
[312654844,1706138594582,385.06781036,0.00021742,2]
[312654845,1706138596436,235.18,0.00021352,2]
[312654846,1706138612399,310.45,0.00019445,2]
[312654847,1706138612781,310.45,0.00021709,2]
[312654848,1706138629860,260.49358116,0.00021742,2]
[312654849,1706138635102,1318.68025642,0.00021742,2]
[312654850,1706138638335,226.28651302,0.00021742,2]
[312654851,1706138642045,150.0,0.00021742,2]
[312654852,1706138644080,1854.56150247,0.00021742,2]
[312654853,1706138647586,150.0,0.00021429,2]
[312654854,1706138648142,302.60679678,0.00021742,2]
[312654855,1706138658163,156.18,0.00021584,2]
[312654856,1706138686046,165.06,0.00021411,2]
[312654857,1706138697088,150.0,0.00021691,2]
[312654858,1706138702824,6445.92680117,0.00021742,2]
[312654859,1706138714640,2000.0,0.00021403,2]
[312654860,1706138717715,617.62,0.00021644,2]
[312654861,1706138718223,23900.0,0.00021403,2]
[312654862,1706138723284,500.0,0.00021691,2]
[312654863,1706138765271,150.0,0.00021691,2]
[312654864,1706138841102,162.42830756,0.00021681,2]
[312654865,1706138862894,533.54,0.0002135,2]
[312654866,1706138864228,1000.0,0.0002135,2]
[312654867,1706138941069,248.75,0.00021366,2]
[312654868,1706138941953,170.76,0.00021366,2]
[312654870,1706139012491,250.0,0.00021386,2]
[312654883,1706139032094,-155.0,0.00021743,2]
[312654884,1706139032104,-1318.68025642,0.00021771,2]
[312654885,1706139032114,-327.24908451,0.00021772,2]
[312654886,1706139032123,-1480.13542168,0.00021781,2]
[312654887,1706139032152,-421.87460659,0.00021781,2]
[312654888,1706139032206,-930.46883744,0.00021781,2]
[312654889,1706139032216,-150.0,0.00021787,2]
[312654890,1706139032225,-155.81982921,0.00021788,2]
[312654891,1706139032235,-23958.90444272,0.00021788,2]
[312654892,1706139032263,-5523.84069082,0.00021788,2]
[312654893,1706139032275,-550.0,0.00021788,2]
[312654894,1706139033459,-755.48459531,0.00021788,2]
[312654895,1706139033515,-2505.07671998,0.00021788,2]
[312654896,1706139033530,-115.44590842,0.00021788,2]
[312654897,1706139033540,-795.41611359,0.00021789,2]
[312654898,1706139033550,-9999.99,0.00021789,2]
[312654899,1706139033561,-299.99,0.00021789,7]
[312654900,1706139033570,-2089.59,0.00021789,2]
[312654901,1706139033580,-499.99,0.00021789,2]
[312654902,1706139033590,-300.0,0.00021909,2]
[312654903,1706139033601,-250.0,0.00021918,2]
[312654904,1706139033610,-2514.35433442,0.00021988,2]
[312654905,1706139033620,-155.0,0.0002199,2]
[312654907,1706139033630,-963.95072674,0.00022,2]
[312654944,1706139038021,-1819.86227135,0.00022,2]
[312654945,1706139038031,-176.5,0.00022,2]
[312654946,1706139038040,-1043.15716476,0.00022,2]
[312654948,1706139038049,-161.96665803,0.00022002,2]
[312654950,1706139038059,-1518.70500028,0.00022078,2]
[312654952,1706139038069,-162.42830755,0.00022087,2]
[312654954,1706139038078,-652.06705863,0.00022105,2]
[312654955,1706139038087,-3008.52191293,0.00022105,2]
[312654956,1706139038096,-199.40820147,0.00022105,2]
[312654957,1706139038105,-155.0,0.00022105,2]
[312654959,1706139038114,-400.80869499,0.00022105,2]
[312654963,1706139038141,-42.24330501,0.00022105,2]